fUSD/lending_fUSD_20240828
["ID","MTS","AMOUNT","RATE_DAILY","PERIOD"]
[336490865,1724877243687,-500.0,0.00038356,120]
[336490866,1724877243721,-500.0,0.00038356,120]
[336490867,1724877243753,-500.0,0.00038356,120]
[336490868,1724877243785,-1469.79,0.00038356,120]
[336490869,1724877243820,-1093.64,0.00038356,120]
[336490870,1724877243854,-307.24879118,0.00038356,120]
[336490871,1724877243889,-511.34215751,0.00038356,120]
[336490872,1724877243930,-1497.58,0.00038356,120]
[336490873,1724877243968,-2087.61,0.00038356,120]
[336490874,1724877244003,-500.0,0.00038356,120]
[336490875,1724877244037,-1696.2,0.00038356,120]
[336490876,1724877244072,-554.38,0.00038356,120]
[336490877,1724877244105,-500.0,0.00038356,120]
[336490878,1724877244139,-500.0,0.00038356,120]
[336490879,1724877244177,-500.0,0.00038356,120]
[336490880,1724877244209,-500.0,0.00038356,120]
[336490881,1724877244242,-500.0,0.00038356,120]
[336490882,1724877244273,-426.47387825,0.00038356,120]
[336490883,1724877244305,-500.0,0.00038356,120]
[336490884,1724877244338,-1725.54,0.00038356,120]
[336490885,1724877244369,-500.0,0.00038356,120]
[336490886,1724877244411,-2344.55,0.00038356,120]
[336490887,1724877244447,-500.71480016,0.00038356,120]
[336490888,1724877244478,-1108.72,0.00038356,120]
[336490889,1724877244510,-1696.92,0.00038356,120]
[336490890,1724877244541,-532.01,0.00038356,120]
[336490891,1724877244572,-500.0,0.00038356,120]
[336490892,1724877244605,-3305.49,0.00038356,120]
[336490893,1724877244639,-5926.99,0.00038356,120]
[336490894,1724877244674,-1576.05,0.00038356,120]
[336490895,1724877244706,-500.0,0.00038356,120]
[336490896,1724877244737,-669.11,0.00038356,120]
[336490897,1724877244768,-1641.7,0.00038356,120]
[336490898,1724877244799,-500.0,0.00038356,120]
[336490899,1724877244831,-500.0,0.00038356,120]
[336490900,1724877244862,-1378.7,0.00038356,120]
[336490901,1724877244897,-2894.17,0.00038356,120]
[336490902,1724877244933,-3756.0,0.00038356,120]
[336490903,1724877244970,-504.54,0.00038356,120]
[336490904,1724877245004,-501.30497789,0.00038356,120]
[336490905,1724877245037,-3035.15,0.00038356,120]
[336490906,1724877245071,-799.37,0.00038356,120]
[336490907,1724877245104,-1282.29,0.00038356,120]
[336490908,1724877245137,-500.0,0.00038356,120]
[336490909,1724877245177,-1298.0,0.00038356,120]
[336490910,1724877245208,-691.66,0.00038356,120]
[336490911,1724877245240,-500.0,0.00038356,120]
[336490912,1724877245273,-2503.65,0.00038356,120]
[336490913,1724877245307,-2503.65,0.00038356,120]
[336490914,1724877245558,-2503.65,0.00038356,120]
[336490915,1724877245595,-2503.65,0.00038356,120]
[336490916,1724877245629,-4020.83,0.00038356,120]
[336490917,1724877245664,-500.0,0.00038356,120]
[336490918,1724877245699,-2503.65,0.00038356,120]
[336490919,1724877245734,-2503.65,0.00038356,120]
[336490920,1724877245769,-2503.65,0.00038356,120]
[336490921,1724877245803,-500.0,0.00038356,120]
[336490922,1724877245836,-1198.56,0.00038356,120]
[336490923,1724877245871,-2503.65,0.00038356,120]
[336490924,1724877245913,-2503.65,0.00038356,120]
[336490925,1724877245946,-2253.06,0.00038356,120]
[336490926,1724877245980,-2503.65,0.00038356,120]
[336490927,1724877246011,-1961.45,0.00038356,120]
[336490928,1724877246044,-2503.65,0.00038356,120]
[336490929,1724877246075,-3453.46,0.00038356,120]
[336490930,1724877246107,-2503.65,0.00038356,120]
[336490931,1724877246139,-500.0,0.00038356,120]
[336490932,1724877246180,-500.0,0.00038356,120]
[336490933,1724877246214,-2503.65,0.00038356,120]
[336490934,1724877246246,-500.0,0.00038356,120]
[336490935,1724877246280,-2503.65,0.00038356,120]
[336490936,1724877246314,-2503.65,0.00038356,120]
[336490937,1724877246350,-2503.65,0.00038356,120]
[336490938,1724877246385,-2503.65,0.00038356,120]
[336490939,1724877246416,-611.58,0.00038356,120]
[336490940,1724877246448,-2503.65,0.00038356,120]
[336490941,1724877246482,-500.0,0.00038356,120]
[336490942,1724877246515,-2503.65,0.00038356,120]
[336490943,1724877246547,-2503.65,0.00038356,120]
[336490944,1724877246581,-2503.65,0.00038356,120]
[336490945,1724877246615,-2503.65,0.00038356,120]
[336490946,1724877246649,-2503.65,0.00038356,120]
[336490947,1724877246685,-2503.71028084,0.00038356,120]
[336490948,1724877246717,-528.97302991,0.00038356,120]
[336490949,1724877246748,-500.0,0.00038356,120]
[336490950,1724877246781,-2161.87,0.00038356,120]
[336490951,1724877246813,-500.0,0.00038356,120]
[336490952,1724877246845,-4400.21,0.00038356,120]
[336490953,1724877246876,-682.91,0.00038356,120]
[336490954,1724877246910,-1525.8,0.00038356,120]
[336490955,1724877246943,-2965.82,0.00038356,120]
[336490956,1724877246976,-933.73,0.00038356,120]
[336490957,1724877247009,-539.03,0.00038356,120]
[336490958,1724877247041,-500.0,0.00038356,120]
[336490959,1724877247075,-1637.04,0.00038356,120]
[336490960,1724877247110,-1000.0,0.00038356,120]
[336490961,1724877247146,-500.0,0.00038356,120]
[336490962,1724877247188,-525.07909255,0.00038356,120]
[336490963,1724877247223,-569.52,0.00038356,120]
[336490964,1724877247256,-2400.9,0.00038356,120]
[336490965,1724877247290,-2178.02,0.00038356,120]
[336490966,1724877247326,-627.0,0.00038356,120]
[336490967,1724877247359,-967.25,0.00038356,120]
[336490968,1724877247393,-500.0,0.00038356,120]
[336490969,1724877247437,-3868.58,0.00038356,120]
[336490970,1724877247474,-1493.46,0.00038356,120]
[336490971,1724877247507,-500.0,0.00038356,120]
[336490972,1724877247539,-3906.29,0.00038356,120]
[336490973,1724877247572,-500.0,0.00038356,120]
[336490974,1724877247605,-498.87681583,0.00038356,120]
[336490975,1724877247639,-506.25080998,0.00038356,120]
[336490976,1724877247672,-500.0,0.00038356,120]
[336490977,1724877247706,-656.01,0.00038356,120]
[336490978,1724877247739,-2766.05,0.00038356,120]
[336490979,1724877247769,-831.66,0.00038356,120]
[336490980,1724877247802,-4909.45,0.00038356,120]
[336490981,1724877247832,-500.85008351,0.00038356,120]
[336490982,1724877247863,-500.0,0.00038356,120]
[336490983,1724877247893,-500.0,0.00038356,120]
[336490984,1724877247938,-500.0,0.00038356,120]
[336490985,1724877247969,-2371.02,0.00038356,120]
[336490986,1724877248000,-500.0,0.00038356,120]
[336490987,1724877248030,-3052.18,0.00038356,120]
[336490988,1724877248061,-500.0,0.00038356,120]
[336490989,1724877248091,-500.0,0.00038356,120]
[336490990,1724877248122,-500.0,0.00038356,120]
[336490991,1724877248152,-2242.76,0.00038356,120]
[336490992,1724877248190,-1342.65,0.00038356,120]
[336490993,1724877248220,-500.0,0.00038356,120]
[336490994,1724877248249,-3389.36,0.00038356,120]
[336490995,1724877248278,-759.89,0.00038356,120]
[336490996,1724877248308,-500.0,0.00038356,120]
[336490997,1724877248340,-500.0,0.00038356,120]
[336490998,1724877248371,-6002.93,0.00038356,120]
[336490999,1724877248400,-500.0,0.00038356,120]
[336491000,1724877248433,-500.0,0.00038356,120]
[336491001,1724877248461,-400.0,0.00038356,120]
[336491002,1724877248492,-500.0,0.00038356,120]
[336491003,1724877248523,-500.0,0.00038356,120]
[336491004,1724877248552,-802.1,0.00038356,120]
[336491005,1724877248581,-500.0,0.00038356,120]
[336491006,1724877248611,-675.44,0.00038356,120]
[336491007,1724877248643,-816.4,0.00038356,120]
[336491008,1724877248675,-500.0,0.00038356,120]
[336491009,1724877248704,-2334.87,0.00038356,120]
[336491010,1724877248734,-521.04,0.00038356,120]
[336491011,1724877248763,-500.31519701,0.00038356,120]
[336491012,1724877248793,-1412.95,0.00038356,120]
[336491013,1724877248824,-500.0,0.00038356,120]
[336491014,1724877248856,-500.0,0.00038356,120]
[336491015,1724877248886,-2858.45,0.00038356,120]
[336491016,1724877248918,-1342.44,0.00038356,120]
[336491017,1724877248950,-3128.03,0.00038356,120]
[336491018,1724877249187,-500.0,0.00038356,120]
[336491019,1724877249225,-1574.08,0.00038356,120]
[336491020,1724877249256,-799.71,0.00038356,120]
[336491021,1724877249286,-1277.26,0.00038356,120]
[336491022,1724877249318,-5034.92,0.00038356,120]
[336491023,1724877249350,-500.0,0.00038356,120]
[336491024,1724877249382,-500.0,0.00038356,120]
[336491025,1724877249419,-6560.65,0.00038356,120]
[336491026,1724877249450,-4352.1,0.00038356,120]
[336491027,1724877249485,-848.04,0.00038356,120]
[336491028,1724877249516,-500.0,0.00038356,120]
[336491029,1724877249546,-7869.16,0.00038356,120]
[336491030,1724877249575,-1000.0,0.00038356,120]
[336491031,1724877249605,-1678.32,0.00038356,120]
[336491032,1724877249635,-528.32,0.00038356,120]
[336491033,1724877249665,-500.0,0.00038356,120]
[336491034,1724877249695,-500.0,0.00038356,120]
[336491035,1724877249725,-1029.52,0.00038356,120]
[336491036,1724877249754,-500.0,0.00038356,120]
[336491037,1724877249783,-552.8,0.00038356,120]
[336491038,1724877249814,-2173.51,0.00038356,120]
[336491039,1724877249844,-500.0,0.00038356,120]
[336491040,1724877249874,-500.0,0.00038356,120]
[336491041,1724877249906,-2168.9,0.00038356,120]
[336491042,1724877249941,-500.0,0.00038356,120]
[336491043,1724877249975,-1728.55,0.00038356,120]
[336491044,1724877250009,-500.0,0.00038356,120]
[336491045,1724877250042,-3072.44,0.00038356,120]
[336491046,1724877250073,-502.82803678,0.00038356,120]
[336491047,1724877250105,-1338.73,0.00038356,120]
[336491048,1724877250137,-500.0,0.00038356,120]
[336491049,1724877250173,-500.0,0.00038356,120]
[336491050,1724877250203,-500.0,0.00038356,120]
[336491051,1724877250232,-500.0,0.00038356,120]
[336491052,1724877250265,-500.0,0.00038356,120]
[336491053,1724877250295,-1829.39,0.00038356,120]
[336491054,1724877250326,-527.64,0.00038356,120]
[336491055,1724877250367,-500.0,0.00038356,120]
[336491056,1724877250398,-500.0,0.00038356,120]
[336491057,1724877250436,-500.0,0.00038356,120]
[336491058,1724877250466,-500.0,0.00038356,120]
[336491059,1724877250496,-500.0,0.00038356,120]
[336491060,1724877250527,-3377.55,0.00038356,120]
[336491061,1724877250557,-1019.43,0.00038356,120]
[336491062,1724877250589,-500.0,0.00038356,120]
[336491063,1724877250623,-3644.7,0.00038356,120]
[336491064,1724877250656,-909.03,0.00038356,120]
[336491065,1724877250692,-500.0,0.00038356,120]
[336491066,1724877250722,-1795.11,0.00038356,120]
[336491067,1724877250753,-518.30122567,0.00038356,120]
[336491068,1724877250785,-500.0,0.00038356,120]
[336491069,1724877250817,-568.5,0.00038356,120]
[336491070,1724877250849,-500.0,0.00038356,120]
[336491071,1724877250884,-996.82,0.00038356,120]
[336491072,1724877250915,-500.0,0.00038356,120]
[336491073,1724877250945,-500.0,0.00038356,120]
[336491074,1724877250975,-500.0,0.00038356,120]
[336491075,1724877251004,-670.71,0.00038356,120]
[336491076,1724877251033,-500.0,0.00038356,120]
[336491077,1724877251060,-561.76,0.00038356,120]
[336491078,1724877251088,-3530.49,0.00038356,120]
[336491079,1724877251116,-500.0,0.00038356,120]
[336491080,1724877251144,-200.0,0.00038356,60]
[336491081,1724877251176,-150.0,0.00038623,120]
[336491082,1724877251203,-250.465542,0.0003863,120]
[336491083,1724877251231,-6464.652118,0.0003863,120]
[336491084,1724877251260,-8088.157906,0.0003863,120]
[336491085,1724877251289,-152.330078,0.0003863,120]
[336491086,1724877251319,-519.27818554,0.0003863,120]
[336491087,1724877251349,-500.0,0.0003863,120]
[336491088,1724877251378,-2474.966237,0.0003863,120]
[336491089,1724877251409,-509.08112169,0.0003863,120]
[336491090,1724877251438,-595.97585038,0.0003863,120]
[336491091,1724877251466,-500.0,0.0003863,120]
[336491092,1724877251495,-500.0,0.0003863,120]
[336491093,1724877251523,-500.0,0.0003863,120]
[336491094,1724877251552,-500.0,0.0003863,120]
[336491095,1724877251580,-500.0,0.0003863,120]
[336491096,1724877251613,-500.0,0.0003863,120]
[336491097,1724877251645,-500.0,0.0003863,120]
[336491098,1724877251676,-500.0,0.0003863,120]
[336491099,1724877251705,-500.0,0.0003863,120]
[336491100,1724877251734,-500.0,0.0003863,120]
[336491101,1724877251762,-500.0,0.0003863,120]
[336491102,1724877251791,-500.0,0.0003863,120]
[336491103,1724877251820,-500.0,0.0003863,120]
[336491104,1724877251850,-500.0,0.0003863,120]
[336491105,1724877251881,-500.0,0.0003863,120]
[336491106,1724877251916,-502.59709163,0.0003863,120]
[336491107,1724877251947,-500.0,0.0003863,120]
[336491108,1724877251979,-500.0,0.0003863,120]
[336491109,1724877252010,-503.65898785,0.0003863,120]
[336491110,1724877252041,-500.0,0.0003863,120]
[336491111,1724877252072,-500.0,0.0003863,120]
[336491112,1724877252102,-500.0,0.0003863,120]
[336491113,1724877252132,-500.0,0.0003863,120]
[336491114,1724877252168,-504.06178721,0.0003863,120]
[336491115,1724877252199,-500.0,0.0003863,120]
[336491116,1724877252228,-500.0,0.0003863,120]
[336491117,1724877252259,-500.0,0.0003863,120]
[336491118,1724877252290,-500.0,0.0003863,120]
[336491119,1724877252324,-500.0,0.0003863,120]
[336491120,1724877252355,-568.02937978,0.0003863,120]
[336491121,1724877252387,-500.0,0.0003863,120]
[336491122,1724877252421,-500.0,0.0003863,120]
[336491123,1724877252668,-500.0,0.0003863,120]
[336491124,1724877252701,-500.0,0.0003863,120]
[336491125,1724877252733,-500.0,0.0003863,120]
[336491126,1724877252772,-500.0,0.0003863,120]
[336491127,1724877252804,-500.0,0.0003863,120]
[336491128,1724877252838,-500.0,0.0003863,120]
[336491129,1724877252872,-500.0,0.0003863,120]
[336491130,1724877252906,-500.0,0.0003863,120]
[336491131,1724877252950,-500.0,0.0003863,120]
[336491132,1724877252983,-500.0,0.0003863,120]
[336491133,1724877253017,-500.0,0.0003863,120]
[336491134,1724877253050,-500.0,0.0003863,120]
[336491135,1724877253084,-500.0,0.0003863,120]
[336491136,1724877253117,-500.0,0.0003863,120]
[336491137,1724877253151,-500.0,0.0003863,120]
[336491138,1724877253190,-500.0,0.0003863,120]
[336491139,1724877253221,-500.0,0.0003863,120]
[336491140,1724877253253,-604.41636552,0.0003863,120]
[336491141,1724877253286,-500.0,0.0003863,120]
[336491142,1724877253322,-500.0,0.0003863,120]
[336491143,1724877253357,-500.0,0.0003863,120]
[336491144,1724877253389,-500.0,0.0003863,120]
[336491145,1724877253420,-500.0,0.0003863,120]
[336491146,1724877253450,-500.0,0.0003863,120]
[336491147,1724877253480,-500.0,0.0003863,120]
[336491148,1724877253510,-524.42040078,0.0003863,120]
[336491149,1724877253541,-500.0,0.0003863,120]
[336491150,1724877253570,-500.0,0.0003863,120]
[336491151,1724877253602,-500.0,0.0003863,120]
[336491152,1724877253634,-500.0,0.0003863,120]
[336491153,1724877253670,-2514.12,0.0003863,120]
[336491154,1724877253703,-663.98,0.0003863,120]
[336491155,1724877253735,-500.0,0.0003863,120]
[336491156,1724877253770,-500.0,0.0003863,120]
[336491157,1724877253802,-500.0,0.0003863,120]
[336491158,1724877253838,-584.76,0.0003863,120]
[336491159,1724877253873,-500.0,0.0003863,120]
[336491160,1724877253908,-500.0,0.0003863,120]
[336491161,1724877253947,-500.0,0.0003863,120]
[336491162,1724877253981,-500.0,0.0003863,120]
[336491163,1724877254019,-854.26,0.0003863,120]
[336491164,1724877254052,-712.2,0.0003863,120]
[336491165,1724877254084,-500.0,0.0003863,120]
[336491166,1724877254116,-500.0,0.0003863,120]
[336491167,1724877254148,-500.0,0.0003863,120]
[336491168,1724877254183,-1000.0,0.0003863,120]
[336491169,1724877254213,-500.0,0.0003863,120]
[336491170,1724877254245,-500.0,0.0003863,120]
[336491171,1724877254275,-500.0,0.0003863,120]
[336491172,1724877254306,-502.30002178,0.0003863,120]
[336491173,1724877254340,-956.24,0.0003863,120]
[336491174,1724877254370,-500.0,0.0003863,120]
[336491175,1724877254403,-1398.15,0.0003863,120]
[336491176,1724877254440,-1146.35,0.0003863,120]
[336491177,1724877254471,-708.33,0.0003863,120]
[336491178,1724877254501,-1744.16,0.0003863,120]
[336491179,1724877254534,-500.0,0.0003863,120]
[336491180,1724877254567,-500.0,0.0003863,120]
[336491181,1724877254599,-500.0,0.0003863,120]
[336491182,1724877254630,-500.0,0.0003863,120]
[336491183,1724877254666,-500.0,0.0003863,120]
[336491184,1724877254697,-1030.03,0.0003863,120]
[336491185,1724877254729,-612.97,0.0003863,120]
[336491186,1724877254765,-501.08832535,0.0003863,120]
[336491187,1724877254797,-1829.82,0.0003863,120]
[336491188,1724877254829,-1974.9,0.0003863,120]
[336491189,1724877254861,-643.84,0.0003863,120]
[336491190,1724877254895,-500.0,0.0003863,120]
[336491191,1724877254936,-173.95701303,0.0003863,120]
[336491192,1724877254970,-500.0,0.0003863,120]
[336491193,1724877255005,-500.0,0.0003863,120]
[336491194,1724877255039,-500.0,0.0003863,120]
[336491195,1724877255073,-3295.88,0.0003863,120]
[336491196,1724877255107,-842.36,0.0003863,120]
[336491197,1724877255139,-500.0,0.0003863,120]
[336491198,1724877255171,-663.59,0.0003863,120]
[336491199,1724877255204,-1150.14,0.0003863,120]
[336491200,1724877255238,-500.0,0.0003863,120]
[336491201,1724877255272,-511.54338939,0.0003863,120]
[336491202,1724877255306,-500.0,0.0003863,120]
[336491203,1724877255342,-792.46,0.0003863,120]
[336491204,1724877255375,-500.0,0.0003863,120]
[336491205,1724877255412,-876.74,0.0003863,120]
[336491206,1724877255446,-500.0,0.0003863,120]
[336491207,1724877255479,-500.0,0.0003863,120]
[336491208,1724877255513,-686.25,0.0003863,120]
[336491209,1724877255546,-797.71,0.0003863,120]
[336491210,1724877255578,-500.0,0.0003863,120]
[336491211,1724877255612,-1012.6,0.0003863,120]
[336491212,1724877255645,-500.0,0.0003863,120]
[336491213,1724877255682,-500.0,0.0003863,120]
[336491214,1724877255715,-500.0,0.0003863,120]
[336491215,1724877255749,-1105.27,0.0003863,120]
[336491216,1724877255782,-500.0,0.0003863,120]
[336491217,1724877255815,-511.35404919,0.0003863,120]
[336491218,1724877255849,-500.0,0.0003863,120]
[336491219,1724877255881,-723.37,0.0003863,120]
[336491220,1724877255919,-500.0,0.0003863,120]
[336491221,1724877255952,-984.85,0.0003863,120]
[336491222,1724877255986,-840.71,0.0003863,120]
[336491223,1724877256021,-500.0,0.0003863,120]
[336491224,1724877256055,-500.0,0.0003863,120]
[336491225,1724877256091,-556.54701699,0.0003863,120]
[336491226,1724877256125,-697.76,0.0003863,120]
[336491227,1724877256359,-500.0,0.0003863,120]
[336491228,1724877256392,-1119.02,0.0003863,120]
[336491229,1724877256430,-500.0,0.0003863,120]
[336491230,1724877256461,-637.26,0.0003863,120]
[336491231,1724877256491,-500.0,0.0003863,120]
[336491232,1724877256522,-500.0,0.0003863,120]
[336491233,1724877256552,-928.61,0.0003863,120]
[336491234,1724877256582,-500.65077869,0.0003863,120]
[336491235,1724877256617,-500.0,0.0003863,120]
[336491236,1724877256647,-500.0,0.0003863,120]
[336491237,1724877256680,-500.0,0.0003863,120]
[336491238,1724877256712,-500.0,0.0003863,120]
[336491239,1724877256743,-710.31,0.0003863,120]
[336491240,1724877256777,-500.0,0.0003863,120]
[336491241,1724877256810,-500.0,0.0003863,120]
[336491242,1724877256843,-2041.33,0.0003863,120]
[336491243,1724877256877,-500.0,0.0003863,120]
[336491244,1724877256915,-500.0,0.0003863,120]
[336491245,1724877256950,-618.49,0.0003863,120]
[336491246,1724877256982,-508.28344959,0.0003863,120]
[336491247,1724877257014,-500.0,0.0003863,120]
[336491248,1724877257045,-500.36901558,0.0003863,120]
[336491249,1724877257075,-500.80318279,0.0003863,120]
[336491250,1724877257106,-686.97,0.0003863,120]
[336491251,1724877257137,-500.0,0.0003863,120]
[336491252,1724877257171,-664.34,0.0003863,120]
[336491253,1724877257202,-501.28874673,0.0003863,120]
[336491254,1724877257232,-876.88,0.0003863,120]
[336491255,1724877257262,-500.0,0.0003863,120]
[336491256,1724877257292,-500.0,0.0003863,120]
[336491257,1724877257323,-501.34975757,0.0003863,120]
[336491258,1724877257354,-500.0,0.0003863,120]
[336491259,1724877257385,-573.23,0.0003863,120]
[336491260,1724877257420,-502.00360739,0.0003863,120]
[336491261,1724877257451,-672.86,0.0003863,120]
[336491262,1724877257482,-500.0,0.0003863,120]
[336491263,1724877257513,-500.0,0.0003863,120]
[336491264,1724877257544,-1830.86,0.0003863,120]
[336491265,1724877257575,-500.0,0.0003863,120]
[336491266,1724877257605,-500.0,0.0003863,120]
[336491267,1724877257636,-643.24,0.0003863,120]
[336491268,1724877257667,-500.0,0.0003863,120]
[336491269,1724877257705,-500.0,0.0003863,120]
[336491270,1724877257735,-500.0,0.0003863,120]
[336491271,1724877257767,-500.0,0.0003863,120]
[336491272,1724877257797,-1226.36,0.0003863,120]
[336491273,1724877257828,-741.28,0.0003863,120]
[336491274,1724877257858,-1790.64,0.0003863,120]
[336491275,1724877257890,-500.0,0.0003863,120]
[336491276,1724877257921,-500.0,0.0003863,120]
[336491277,1724877257953,-500.0,0.0003863,120]
[336491278,1724877257984,-500.0,0.0003863,120]
[336491279,1724877258016,-966.65,0.0003863,120]
[336491280,1724877258048,-500.0,0.0003863,120]
[336491281,1724877258080,-1101.57,0.0003863,120]
[336491282,1724877258112,-500.0,0.0003863,120]
[336491283,1724877258146,-624.61,0.0003863,120]
[336491284,1724877258192,-500.0,0.0003863,120]
[336491285,1724877258227,-500.0,0.0003863,120]
[336491286,1724877258263,-500.0,0.0003863,120]
[336491287,1724877258301,-500.0,0.0003863,120]
[336491288,1724877258340,-500.0,0.0003863,120]
[336491289,1724877258376,-500.0,0.0003863,120]
[336491290,1724877258419,-500.0,0.0003863,120]
[336491291,1724877258458,-500.0,0.0003863,120]
[336491292,1724877258489,-521.25057246,0.0003863,120]
[336491293,1724877258521,-500.0,0.0003863,120]
[336491294,1724877258553,-1031.33,0.0003863,120]
[336491295,1724877258584,-1115.7,0.0003863,120]
[336491296,1724877258615,-500.0,0.0003863,120]
[336491297,1724877258648,-500.0,0.0003863,120]
[336491298,1724877258683,-500.0,0.0003863,120]
[336491299,1724877258715,-500.0,0.0003863,120]
[336491300,1724877258745,-556.44,0.0003863,120]
[336491301,1724877258776,-500.0,0.0003863,120]
[336491302,1724877258809,-500.0,0.0003863,120]
[336491303,1724877258841,-500.0,0.0003863,120]
[336491304,1724877258873,-778.59,0.0003863,120]
[336491305,1724877258907,-500.0,0.0003863,120]
[336491306,1724877258943,-508.42047312,0.0003863,120]
[336491307,1724877258976,-500.0,0.0003863,120]
[336491308,1724877259009,-500.0,0.0003863,120]
[336491309,1724877259040,-500.0,0.0003863,120]
[336491310,1724877259072,-500.0,0.0003863,120]
[336491311,1724877259104,-500.0,0.0003863,120]
[336491312,1724877259136,-500.0,0.0003863,120]
[336491313,1724877259173,-500.0,0.0003863,120]
[336491314,1724877259206,-500.0,0.0003863,120]
[336491315,1724877259238,-500.0,0.0003863,120]
[336491316,1724877259270,-1249.59,0.0003863,120]
[336491317,1724877259302,-500.0,0.0003863,120]
[336491318,1724877259334,-500.0,0.0003863,120]
[336491319,1724877259365,-500.0,0.0003863,120]
[336491320,1724877259398,-500.0,0.0003863,120]
[336491321,1724877259434,-282.09907406,0.0003863,120]
[336491322,1724877259471,-841.13,0.0003863,120]
[336491323,1724877259502,-500.0,0.0003863,120]
[336491324,1724877259535,-500.0,0.0003863,120]
[336491325,1724877259566,-185.80803873,0.0003863,120]
[336491326,1724877259602,-2787.48,0.0003863,120]
[336491327,1724877259634,-499.4253677,0.0003863,120]
[336491328,1724877259670,-516.49,0.0003863,120]
[336491329,1724877259702,-500.0,0.0003863,120]
[336491330,1724877259733,-500.0,0.0003863,120]
[336491331,1724877259993,-500.0,0.0003863,120]
[336491332,1724877260030,-500.0,0.0003863,120]
[336491333,1724877260063,-704.05,0.0003863,120]
[336491334,1724877260096,-500.0,0.0003863,120]
[336491335,1724877260129,-500.0,0.0003863,120]
[336491336,1724877260168,-500.0,0.0003863,120]
[336491337,1724877260200,-500.0,0.0003863,120]
[336491338,1724877260230,-500.0,0.0003863,120]
[336491339,1724877260263,-500.0,0.0003863,120]
[336491340,1724877260295,-500.0,0.0003863,120]
[336491341,1724877260331,-500.0,0.0003863,120]
[336491342,1724877260366,-500.0,0.0003863,120]
[336491343,1724877260398,-1051.82,0.0003863,120]
[336491344,1724877260437,-500.0,0.0003863,120]
[336491345,1724877260468,-752.36,0.0003863,120]
[336491346,1724877260500,-601.79,0.0003863,120]
[336491347,1724877260530,-501.59028102,0.0003863,120]
[336491348,1724877260561,-1885.15,0.0003863,120]
[336491349,1724877260591,-535.4,0.0003863,120]
[336491350,1724877260624,-500.0,0.0003863,120]
[336491351,1724877260656,-944.51,0.0003863,120]
[336491352,1724877260692,-500.0,0.0003863,120]
[336491353,1724877260722,-500.0,0.0003863,120]
[336491354,1724877260752,-500.0,0.0003863,120]
[336491355,1724877260783,-500.0,0.0003863,120]
[336491356,1724877260814,-500.0,0.0003863,120]
[336491357,1724877260848,-500.0,0.0003863,120]
[336491358,1724877260880,-500.0,0.0003863,120]
[336491359,1724877260912,-1414.82,0.0003863,120]
[336491360,1724877260944,-500.0,0.0003863,120]
[336491361,1724877260977,-500.0,0.0003863,120]
[336491362,1724877261014,-500.0,0.0003863,120]
[336491363,1724877261048,-500.0,0.0003863,120]
[336491364,1724877261081,-957.21,0.0003863,120]